fUST/lending_fUST_20250605
["ID","MTS","AMOUNT","RATE_DAILY","PERIOD"]
[364527059,1749127840726,-2439.83,0.00018904,2]
[364527060,1749127840735,-2359.5,0.00018904,2]
[364527061,1749127840744,-340.0,0.00018904,2]
[364527062,1749127840753,-508.95,0.00018904,2]
[364527063,1749127840763,-758.57,0.00018904,2]
[364527064,1749127840775,-564.96,0.00018904,2]
[364527065,1749127840784,-3029.57,0.00018904,2]
[364527066,1749127840794,-1834.4,0.00018904,2]
[364527067,1749127840803,-674.11,0.00018904,2]
[364527068,1749127840812,-440.0,0.00018904,2]
[364527069,1749127840822,-440.0,0.00018904,2]
[364527070,1749127840831,-440.0,0.00018904,2]
[364527071,1749127840840,-440.0,0.00018904,2]
[364527072,1749127840851,-620.88,0.00018904,2]
[364527073,1749127840861,-440.0,0.00018904,2]
[364527074,1749127840870,-763.7,0.00018904,2]
[364527075,1749127840879,-440.0,0.00018904,2]
[364527076,1749127840890,-440.0,0.00018904,2]
[364527078,1749127840900,-4082.83,0.00018904,2]
[364527080,1749127840909,-2398.62,0.00018904,2]
[364527082,1749127840918,-440.0,0.00018904,2]
[364527084,1749127840928,-440.0,0.00018904,2]
[364527086,1749127840940,-709.49,0.00018904,2]
[364527088,1749127840949,-3454.83,0.00018904,2]
[364527090,1749127840959,-2923.93,0.00018904,2]
[364527092,1749127840968,-607.84,0.00018904,2]
[364527094,1749127840977,-471.30064996,0.00019098,2]
[364527096,1749127840986,-500.0,0.00019098,2]
[364527097,1749127840995,-3364.53683801,0.00019107,2]
[364527099,1749127841004,-649.69476902,0.00019142,2]
[364527102,1749127841015,-500.0,0.00019142,2]
[364527103,1749127841027,-367.65937497,0.00019142,2]
[364527105,1749127841036,-501.75675153,0.00019142,2]
[364527107,1749127841046,-500.0,0.00019142,2]
[364527109,1749127841055,-500.82002908,0.00019142,2]
[364527111,1749127841065,-500.0,0.00019142,2]
[364527114,1749127841075,-500.0,0.00019142,2]
[364527115,1749127841084,-500.0,0.00019142,2]
[364527117,1749127841094,-500.0,0.00019142,2]
[364527119,1749127841102,-265.73935326,0.00019142,2]
[364527121,1749127841112,-440.0,0.00019178,2]
[364527123,1749127841122,-531.34230826,0.00019178,2]
[364527125,1749127841131,-440.0,0.00019178,2]
[364527127,1749127841140,-440.0,0.00019178,2]
[364527129,1749127841148,-440.0,0.00019178,2]
[364527131,1749127841158,-440.0,0.00019178,2]
[364527133,1749127841166,-440.0,0.00019178,2]
[364527135,1749127841176,-440.0,0.00019178,2]
[364527137,1749127841188,-440.0,0.00019178,2]
[364527139,1749127841197,-440.0,0.00019178,2]
[364527141,1749127841207,-492.43854041,0.00019178,2]
[364527143,1749127841216,-390.0,0.00019178,2]
[364527145,1749127841226,-440.0,0.00019178,2]
[364527147,1749127841236,-440.0,0.00019178,2]
[364527149,1749127841246,-440.0,0.00019178,2]
[364527151,1749127841255,-440.0,0.00019178,2]
[364527153,1749127841265,-410.0,0.00019178,2]
[364527155,1749127841274,-440.0,0.00019178,2]
[364527157,1749127841283,-440.0,0.00019178,2]
[364527159,1749127841292,-527.2,0.00019178,2]
[364527161,1749127841302,-773.52,0.00019178,2]
[364527163,1749127841311,-440.0,0.00019178,2]
[364527165,1749127841320,-462.19,0.00019178,2]
[364527167,1749127841329,-440.0,0.00019178,2]
[364527169,1749127841338,-1202.39,0.00019178,2]
[364527171,1749127841348,-440.0,0.00019178,2]
[364527173,1749127841357,-330.0,0.00019178,2]
[364527175,1749127841366,-440.0,0.00019178,2]
[364527177,1749127841376,-440.0,0.00019178,2]
[364527179,1749127841386,-440.0,0.00019178,2]
[364527181,1749127841396,-440.0,0.00019178,2]
[364527183,1749127841405,-440.0,0.00019178,2]
[364527185,1749127841415,-440.0,0.00019178,2]
[364527187,1749127841425,-440.0,0.00019178,2]
[364527189,1749127841436,-440.0,0.00019178,2]
[364527191,1749127841446,-269.56751369,0.00019178,2]
[364527193,1749127841456,-440.0,0.00019178,2]
[364527195,1749127841466,-440.0,0.00019178,2]
[364527197,1749127841476,-440.0,0.00019178,2]
[364527199,1749127841486,-151.0,0.00019178,2]
[364527201,1749127841497,-440.0,0.00019178,2]
[364527203,1749127841506,-380.0,0.00019178,2]
[364527205,1749127841516,-636.8,0.00019178,2]
[364527207,1749127841527,-440.0,0.00019178,2]
[364527209,1749127841537,-449.16,0.00019178,2]
[364527211,1749127841547,-1088.77,0.00019178,2]
[364527213,1749127841557,-440.0,0.00019178,2]
[364527215,1749127841568,-230.10470056,0.00019178,2]
[364527217,1749127841578,-730.19,0.00019178,2]
[364527219,1749127841589,-585.48,0.00019178,2]
[364527220,1749127841598,-505.67,0.00019178,2]
[364527222,1749127841607,-510.58,0.00019178,2]
[364527224,1749127841617,-1691.41,0.00019178,2]
[364527226,1749127841626,-792.21,0.00019178,2]
[364527228,1749127841635,-440.0,0.00019178,2]
[364527230,1749127841645,-926.88,0.00019178,2]
[364527232,1749127841654,-440.0,0.00019178,2]
[364527234,1749127841665,-290.0,0.00019178,2]
[364527236,1749127841674,-440.0,0.00019178,2]
[364527238,1749127841687,-440.0,0.00019178,2]
[364527240,1749127841696,-440.0,0.00019178,2]
[364527242,1749127841705,-440.0,0.00019178,2]
[364527245,1749127841722,-440.0,0.00019178,2]
[364527247,1749127841736,-440.0,0.00019178,2]
[364527249,1749127841746,-6314.65,0.00019178,2]
[364527251,1749127841756,-440.0,0.00019178,2]
[364527253,1749127841766,-1250.17,0.00019178,2]
[364527255,1749127841779,-2439.83,0.00019178,2]
[364527258,1749127841789,-2359.5,0.00019178,2]
[364527260,1749127841799,-508.95,0.00019178,2]
[364527262,1749127841809,-758.57,0.00019178,2]
[364527264,1749127841818,-564.96,0.00019178,2]
[364527266,1749127841828,-3029.57,0.00019178,2]
[364527268,1749127841838,-1834.4,0.00019178,2]
[364527270,1749127841848,-674.11,0.00019178,2]
[364527272,1749127841858,-440.0,0.00019178,2]
[364527274,1749127841868,-440.0,0.00019178,2]
[364527276,1749127841877,-440.0,0.00019178,2]
[364527278,1749127841887,-440.0,0.00019178,2]
[364527280,1749127841896,-620.88,0.00019178,2]
[364527282,1749127841906,-440.0,0.00019178,2]
[364527284,1749127841916,-763.7,0.00019178,2]
[364527286,1749127841926,-440.0,0.00019178,2]
[364527288,1749127841936,-440.0,0.00019178,2]
[364527290,1749127841946,-4082.83,0.00019178,2]
[364527292,1749127841955,-2398.62,0.00019178,2]
[364527294,1749127841965,-440.0,0.00019178,2]
[364527296,1749127841974,-440.0,0.00019178,2]
[364527298,1749127841984,-709.49,0.00019178,2]
[364527300,1749127841995,-3454.83,0.00019178,2]
[364527302,1749127842005,-2923.93,0.00019178,2]
[364527304,1749127842014,-607.84,0.00019178,2]
[364527306,1749127842024,-171.718093,0.00019178,2]
[364527308,1749127842033,-151.0,0.00019205,2]
[364527310,1749127842043,-151.0,0.00019233,2]
[364527312,1749127842053,-168.73480422,0.00019249,2]
[364527314,1749127842063,-151.99846053,0.00019288,2]
[364527316,1749127842073,-3066.71247887,0.000193,2]
[364527318,1749127842083,-3364.53683801,0.00019314,2]
[364527320,1749127842092,-500.0,0.00019381,2]
[364527322,1749127842102,-16000.0,0.00019441,2]
[364527324,1749127842111,-440.0,0.00019452,2]
[364527326,1749127842121,-233.890873,0.00019452,2]
[364527328,1749127842131,-440.0,0.00019452,2]
[364527330,1749127842140,-440.0,0.00019452,2]
[364527332,1749127842150,-440.0,0.00019452,2]
[364527334,1749127842159,-440.0,0.00019452,2]
[364527336,1749127842168,-440.0,0.00019452,2]
[364527338,1749127842179,-440.0,0.00019452,2]
[364527340,1749127842189,-440.0,0.00019452,2]
[364527342,1749127842199,-440.0,0.00019452,2]
[364527344,1749127842209,-440.0,0.00019452,2]
[364527346,1749127842218,-440.0,0.00019452,2]
[364527348,1749127842228,-440.0,0.00019452,2]
[364527350,1749127842238,-440.0,0.00019452,2]
[364527352,1749127842249,-773.52,0.00019452,2]
[364527354,1749127842258,-440.0,0.00019452,2]
[364527356,1749127842268,-440.0,0.00019452,2]
[364527358,1749127842277,-1202.39,0.00019452,2]
[364527360,1749127842288,-440.0,0.00019452,2]
[364527362,1749127842298,-440.0,0.00019452,2]
[364527364,1749127842308,-307.02708098,0.00019452,2]
[364527366,1749127842318,-440.0,0.00019452,2]
[364527368,1749127842328,-440.0,0.00019452,2]
[364527370,1749127842341,-297.50687434,0.00019452,2]
[364527372,1749127842351,-440.0,0.00019452,2]
[364527374,1749127842360,-440.0,0.00019452,2]
[364527376,1749127842371,-440.0,0.00019452,2]
[364527378,1749127842380,-440.0,0.00019452,2]
[364527380,1749127842390,-636.8,0.00019452,2]
[364527382,1749127842401,-440.0,0.00019452,2]
[364527384,1749127842411,-449.16,0.00019452,2]
[364527386,1749127842420,-1088.77,0.00019452,2]
[364527389,1749127842432,-440.0,0.00019452,2]
[364527391,1749127842442,-585.48,0.00019452,2]
[364527393,1749127842451,-505.67,0.00019452,2]
[364527395,1749127842461,-510.58,0.00019452,2]
[364527397,1749127842471,-1691.41,0.00019452,2]
[364527399,1749127842481,-440.0,0.00019452,2]
[364527401,1749127842490,-926.88,0.00019452,2]
[364527403,1749127842500,-440.0,0.00019452,2]
[364527405,1749127842510,-440.0,0.00019452,2]
[364527407,1749127842519,-463.85,0.00019452,2]
[364527409,1749127842529,-440.0,0.00019452,2]
[364527411,1749127842539,-440.0,0.00019452,2]
[364527413,1749127842548,-440.0,0.00019452,2]
[364527415,1749127842558,-6314.65,0.00019452,2]
[364527417,1749127842568,-440.0,0.00019452,2]
[364527419,1749127842578,-1250.17,0.00019452,2]
[364527421,1749127842587,-2439.83,0.00019452,2]
[364527423,1749127842598,-2359.5,0.00019452,2]
[364527425,1749127842607,-508.95,0.00019452,2]
[364527427,1749127842617,-758.57,0.00019452,2]
[364527429,1749127842627,-564.96,0.00019452,2]
[364527431,1749127842637,-3029.57,0.00019452,2]
[364527433,1749127842647,-1834.4,0.00019452,2]
[364527435,1749127842657,-674.11,0.00019452,2]
[364527437,1749127842667,-316.95083678,0.00019452,2]
[364527439,1749127842677,-440.0,0.00019452,2]
[364527441,1749127842688,-440.0,0.00019452,2]
[364527443,1749127842697,-440.0,0.00019452,2]
[364527445,1749127842707,-620.88,0.00019452,2]
[364527447,1749127842716,-440.0,0.00019452,2]
[364527449,1749127842726,-763.7,0.00019452,2]
[364527451,1749127842736,-440.0,0.00019452,2]
[364527453,1749127842745,-440.0,0.00019452,2]
[364527454,1749127842756,-4082.83,0.00019452,2]
[364527456,1749127842767,-2398.62,0.00019452,2]
[364527458,1749127842779,-440.0,0.00019452,2]
[364527459,1749127842789,-440.0,0.00019452,2]
[364527460,1749127842800,-709.49,0.00019452,2]
[364527461,1749127842810,-3454.83,0.00019452,2]
[364527462,1749127842821,-2923.93,0.00019452,2]
[364527463,1749127842831,-607.84,0.00019452,2]
[364527464,1749127842842,-3364.53683801,0.00019521,2]
[364527465,1749127842853,-443.46684055,0.00019602,2]
[364527466,1749127842862,-501.44023844,0.00019602,2]
[364527467,1749127842872,-2866.26,0.00019616,2]
[364527468,1749127842883,-635.04327418,0.00019645,2]
[364527469,1749127842892,-160.0,0.0001967,2]
[364527470,1749127842902,-1003.87350031,0.0001969,2]
[364527471,1749127842911,-500.0,0.0001969,2]
[364527472,1749127842922,-500.0,0.0001969,2]
[364527473,1749127842934,-1000.0,0.0001969,2]
[364527474,1749127842944,-160.0,0.00019725,2]
[364527475,1749127842954,-440.0,0.00019726,2]
[364527476,1749127842966,-240.555,0.00019726,2]
[364527477,1749127842977,-240.555,0.00019726,2]
[364527478,1749127842987,-233.890873,0.00019726,2]
[364527479,1749127842997,-233.890873,0.00019726,2]
[364527480,1749127843007,-189.14307656,0.00019726,2]
[364527482,1749127843017,-440.0,0.00019726,2]
[364527484,1749127843027,-440.0,0.00019726,2]
[364527486,1749127843037,-440.0,0.00019726,2]
[364527488,1749127843047,-440.0,0.00019726,2]
[364527490,1749127843056,-440.0,0.00019726,2]
[364527491,1749127843066,-440.0,0.00019726,2]
[364527493,1749127843075,-174.10970158,0.00019726,2]
[364527497,1749127843086,-440.0,0.00019726,2]
[364527500,1749127843096,-440.0,0.00019726,2]
[364527503,1749127843106,-440.0,0.00019726,2]
[364527506,1749127843116,-773.52,0.00019726,2]
[364527509,1749127843126,-316.06492943,0.00019726,2]
[364527512,1749127843135,-440.0,0.00019726,2]
[364527514,1749127843145,-1202.39,0.00019726,2]
[364527515,1749127843155,-440.0,0.00019726,2]
[364527516,1749127843165,-440.0,0.00019726,2]
[364527517,1749127843174,-440.0,0.00019726,2]
[364527518,1749127843186,-440.0,0.00019726,2]
[364527519,1749127843196,-440.0,0.00019726,2]
[364527520,1749127843206,-440.0,0.00019726,2]
[364527521,1749127843216,-440.0,0.00019726,2]
[364527522,1749127843226,-506.00904347,0.00019726,2]
[364527523,1749127843236,-636.8,0.00019726,2]
[364527524,1749127843246,-440.0,0.00019726,2]
[364527525,1749127843256,-449.16,0.00019726,2]
[364527526,1749127843266,-1088.77,0.00019726,2]
[364527527,1749127843275,-440.0,0.00019726,2]
[364527528,1749127843284,-585.48,0.00019726,2]
[364527529,1749127843294,-505.67,0.00019726,2]
[364527530,1749127843304,-510.58,0.00019726,2]
[364527531,1749127843313,-1691.41,0.00019726,2]
[364527532,1749127843323,-440.0,0.00019726,2]
[364527533,1749127843333,-926.88,0.00019726,2]
[364527534,1749127843342,-440.0,0.00019726,2]
[364527535,1749127843352,-440.0,0.00019726,2]
[364527536,1749127843361,-440.0,0.00019726,2]
[364527537,1749127843371,-440.0,0.00019726,2]
[364527538,1749127843380,-440.0,0.00019726,2]
[364527539,1749127843390,-6314.65,0.00019726,2]
[364527540,1749127843399,-440.0,0.00019726,2]
[364527541,1749127843408,-1250.17,0.00019726,2]
[364527542,1749127843418,-2439.83,0.00019726,2]
[364527543,1749127843431,-2359.5,0.00019726,2]
[364527544,1749127843440,-508.95,0.00019726,2]
[364527545,1749127843450,-758.57,0.00019726,2]
[364527546,1749127843459,-3029.57,0.00019726,2]
[364527547,1749127843469,-564.96,0.00019726,2]
[364527548,1749127843478,-1834.4,0.00019726,2]
[364527549,1749127843488,-674.11,0.00019726,2]
[364527550,1749127843497,-440.0,0.00019726,2]
[364527551,1749127843506,-440.0,0.00019726,2]
[364527552,1749127843515,-286.57161103,0.00019726,2]
[364527553,1749127843525,-620.88,0.00019726,2]
[364527554,1749127843534,-440.0,0.00019726,2]
[364527555,1749127843544,-763.7,0.00019726,2]
[364527556,1749127843554,-440.0,0.00019726,2]
[364527557,1749127843563,-440.0,0.00019726,2]
[364527558,1749127843573,-4082.83,0.00019726,2]
[364527559,1749127843582,-2398.62,0.00019726,2]
[364527560,1749127843591,-440.0,0.00019726,2]
[364527561,1749127843600,-440.0,0.00019726,2]
[364527562,1749127843610,-709.49,0.00019726,2]
[364527563,1749127843619,-3454.83,0.00019726,2]
[364527564,1749127843629,-2923.93,0.00019726,2]
[364527565,1749127843638,-3364.53683801,0.00019728,2]
[364527566,1749127843647,-160.0,0.00019803,2]
[364527567,1749127843656,-160.0,0.00019803,2]
[364527568,1749127843665,-652.0881075,0.00019803,2]
[364527569,1749127843675,-212.94059491,0.00019803,2]
[364527570,1749127843687,-229.48950782,0.00019803,2]
[364527571,1749127843697,-160.0,0.00019803,2]
[364527573,1749127843706,-160.0,0.00019803,2]
[364527574,1749127843715,-160.0,0.00019803,2]
[364527575,1749127843732,-160.0,0.00019803,2]
[364527576,1749127843744,-423.7637613,0.00019803,2]
[364527577,1749127843753,-1000.0,0.00019929,2]
[364527578,1749127843766,-3364.53683801,0.00019934,2]
[364527579,1749127843776,-547.231,0.00019975,2]
[364527580,1749127843785,-16000.0,0.00019989,2]
[364527581,1749127843795,-370.84,0.0001999,3]
[364527583,1749127843805,-440.0,0.0002,2]
[364527585,1749127843815,-440.0,0.0002,2]
[364527587,1749127843824,-440.0,0.0002,2]
[364527589,1749127843834,-440.0,0.0002,2]
[364527591,1749127843844,-440.0,0.0002,2]
[364527593,1749127843854,-426.30243607,0.0002,2]
[364527595,1749127843863,-440.0,0.0002,2]
[364527597,1749127843873,-440.0,0.0002,2]
[364527599,1749127843882,-440.0,0.0002,2]
[364527601,1749127843892,-440.0,0.0002,2]
[364527603,1749127843902,-773.52,0.0002,2]
[364527604,1749127843912,-260.0,0.0002,2]
[364527606,1749127843921,-1202.39,0.0002,2]
[364527607,1749127843932,-440.0,0.0002,2]
[364527608,1749127843941,-440.0,0.0002,2]
[364527609,1749127843951,-440.0,0.0002,2]
[364527610,1749127843960,-440.0,0.0002,2]
[364527611,1749127843970,-440.0,0.0002,2]
[364527613,1749127843980,-424.32344527,0.0002,2]
[364527615,1749127843990,-440.0,0.0002,2]
[364527617,1749127844000,-636.8,0.0002,2]
[364527619,1749127844009,-440.0,0.0002,2]
[364527621,1749127844019,-449.16,0.0002,2]
[364527623,1749127844029,-1088.77,0.0002,2]
[364527625,1749127844038,-585.48,0.0002,2]
[364527627,1749127844048,-505.67,0.0002,2]
[364527629,1749127844058,-510.58,0.0002,2]
[364527631,1749127844068,-1691.41,0.0002,2]
[364527633,1749127844080,-440.0,0.0002,2]
[364527635,1749127844089,-926.88,0.0002,2]
[364527638,1749127844099,-440.0,0.0002,2]
[364527639,1749127844109,-440.0,0.0002,2]
[364527642,1749127844119,-440.0,0.0002,2]
[364527644,1749127844128,-440.0,0.0002,2]
[364527646,1749127844138,-440.0,0.0002,2]
[364527648,1749127844147,-6314.65,0.0002,2]
[364527650,1749127844156,-440.0,0.0002,2]
[364527670,1749127844330,-1250.17,0.0002,2]
[364527672,1749127844354,-2439.83,0.0002,2]
[364527674,1749127844366,-2359.5,0.0002,2]
[364527676,1749127844376,-508.95,0.0002,2]
[364527679,1749127844386,-758.57,0.0002,2]
[364527680,1749127844395,-564.96,0.0002,2]
[364527683,1749127844406,-3029.57,0.0002,2]
[364527685,1749127844415,-1834.4,0.0002,2]
[364527687,1749127844424,-674.11,0.0002,2]
[364527689,1749127844434,-440.0,0.0002,2]
[364527691,1749127844444,-440.0,0.0002,2]
[364527693,1749127844454,-620.88,0.0002,2]
[364527695,1749127844463,-440.0,0.0002,2]
[364527697,1749127844472,-763.7,0.0002,2]
[364527699,1749127844481,-440.0,0.0002,2]
[364527701,1749127844491,-440.0,0.0002,2]
[364527703,1749127844500,-4082.83,0.0002,2]
[364527705,1749127844509,-2398.62,0.0002,2]
[364527707,1749127844518,-440.0,0.0002,2]
[364527709,1749127844528,-440.0,0.0002,2]
[364527711,1749127844538,-709.49,0.0002,2]
[364527713,1749127844547,-3454.83,0.0002,2]
[364527715,1749127844556,-2923.93,0.0002,2]
[364527717,1749127844566,-3364.53683801,0.00020141,2]
[364527719,1749127844578,-241.368338,0.00020187,2]
[364527721,1749127844587,-151.0,0.000202,3]
[364527723,1749127844597,-168.73480422,0.00020241,2]
[364527725,1749127844606,-233.890873,0.00020273,2]
[364527727,1749127844615,-233.890873,0.00020273,2]
[364527729,1749127844624,-440.0,0.00020273,2]
[364527731,1749127844634,-440.0,0.00020273,2]
[364527733,1749127844643,-440.0,0.00020273,2]
[364527735,1749127844652,-440.0,0.00020273,2]
[364527737,1749127844662,-440.0,0.00020273,2]
[364527739,1749127844671,-505.12089706,0.00020273,2]
[364527741,1749127844681,-440.0,0.00020273,2]
[364527744,1749127844691,-440.0,0.00020273,2]
[364527746,1749127844701,-773.52,0.00020273,2]
[364527748,1749127844710,-1202.39,0.00020273,2]
[364527750,1749127844720,-440.0,0.00020273,2]
[364527752,1749127844730,-440.0,0.00020273,2]
[364527754,1749127844739,-440.0,0.00020273,2]
[364527756,1749127844749,-217.51,0.00020273,2]
[364527758,1749127844758,-440.0,0.00020273,2]
[364527760,1749127844770,-440.0,0.00020273,2]
[364527762,1749127844781,-636.8,0.00020273,2]
[364527764,1749127844790,-440.0,0.00020273,2]
[364527766,1749127844799,-449.16,0.00020273,2]
[364527768,1749127844808,-1088.77,0.00020273,2]
[364527770,1749127844819,-585.48,0.00020273,2]
[364527772,1749127844828,-505.67,0.00020273,2]
[364527774,1749127844838,-510.58,0.00020273,2]
[364527776,1749127844849,-1691.41,0.00020273,2]
[364527778,1749127844859,-440.0,0.00020273,2]
[364527780,1749127844869,-926.88,0.00020273,2]
[364527782,1749127844878,-440.0,0.00020273,2]
[364527784,1749127844889,-440.0,0.00020273,2]
[364527786,1749127844900,-440.0,0.00020273,2]
[364527788,1749127844909,-440.0,0.00020273,2]
[364527790,1749127844919,-440.0,0.00020273,2]
[364527792,1749127844930,-6314.65,0.00020273,2]
[364527794,1749127844940,-440.0,0.00020273,2]
[364527796,1749127844949,-1250.17,0.00020273,2]
[364527799,1749127844960,-2439.83,0.00020273,2]
[364527801,1749127844970,-2359.5,0.00020273,2]
[364527803,1749127844980,-508.95,0.00020273,2]
[364527805,1749127844990,-758.57,0.00020273,2]
[364527807,1749127844999,-564.96,0.00020273,2]
[364527809,1749127845008,-3029.57,0.00020273,2]
[364527811,1749127845018,-1834.4,0.00020273,2]
[364527813,1749127845027,-674.11,0.00020273,2]
[364527815,1749127845037,-440.0,0.00020273,2]
[364527817,1749127845046,-440.0,0.00020273,2]
[364527819,1749127845055,-620.88,0.00020273,2]
[364527821,1749127845066,-440.0,0.00020273,2]
[364527823,1749127845075,-763.7,0.00020273,2]
[364527825,1749127845084,-440.0,0.00020273,2]
[364527827,1749127845094,-440.0,0.00020273,2]
[364527829,1749127845103,-4082.83,0.00020273,2]
[364527831,1749127845113,-2398.62,0.00020273,2]
[364527833,1749127845122,-440.0,0.00020273,2]
[364527835,1749127845132,-440.0,0.00020273,2]
[364527837,1749127845141,-709.49,0.00020273,2]
[364527839,1749127845151,-3454.83,0.00020273,2]
[364527841,1749127845160,-2923.93,0.00020273,2]
[364527843,1749127845170,-3364.53683801,0.00020348,3]
[364527845,1749127845180,-1096.6492135,0.00020448,2]
[364527847,1749127845190,-521.66822977,0.00020477,2]
[364527849,1749127845200,-16000.0,0.00020537,2]
[364527851,1749127845209,-240.555,0.00020547,2]
[364527853,1749127845218,-240.555,0.00020547,2]
[364527855,1749127845228,-440.0,0.00020547,2]
[364527857,1749127845238,-440.0,0.00020547,2]
[364527859,1749127845247,-440.0,0.00020547,2]
[364527861,1749127845257,-440.0,0.00020547,2]
[364527863,1749127845267,-440.0,0.00020547,2]
[364527865,1749127845276,-420.22298708,0.00020547,2]
[364527867,1749127845286,-440.0,0.00020547,2]
[364527869,1749127845296,-773.52,0.00020547,2]
[364527871,1749127845305,-1202.39,0.00020547,2]
[364527873,1749127845314,-440.0,0.00020547,2]
[364527875,1749127845324,-440.0,0.00020547,2]
[364527877,1749127845333,-440.0,0.00020547,2]
[364527879,1749127845342,-440.0,0.00020547,2]
[364527881,1749127845352,-636.8,0.00020547,2]
[364527883,1749127845362,-430.0,0.00020547,2]
[364527885,1749127845371,-440.0,0.00020547,2]
[364527887,1749127845381,-449.16,0.00020547,2]
[364527889,1749127845391,-1088.77,0.00020547,2]
[364527891,1749127845400,-585.48,0.00020547,2]
[364527893,1749127845410,-505.67,0.00020547,2]
[364527895,1749127845420,-510.58,0.00020547,2]
[364527897,1749127845429,-440.0,0.00020547,2]
[364527899,1749127845441,-926.88,0.00020547,2]
[364527901,1749127845450,-440.0,0.00020547,2]
[364527904,1749127845460,-440.0,0.00020547,2]
[364527906,1749127845469,-440.0,0.00020547,2]
[364527908,1749127845479,-440.0,0.00020547,2]
[364527910,1749127845489,-440.0,0.00020547,2]
[364527912,1749127845501,-6314.65,0.00020547,2]
[364527914,1749127845510,-440.0,0.00020547,2]
[364527916,1749127845520,-1250.17,0.00020547,2]
[364527918,1749127845529,-2439.83,0.00020547,2]
[364527920,1749127845539,-2359.5,0.00020547,2]
[364527922,1749127845548,-508.95,0.00020547,2]
[364527924,1749127845557,-758.57,0.00020547,2]
[364527926,1749127845567,-564.96,0.00020547,2]
[364527928,1749127845576,-3029.57,0.00020547,2]
[364527930,1749127845585,-1834.4,0.00020547,2]
[364527932,1749127845594,-674.11,0.00020547,2]
[364527934,1749127845603,-440.0,0.00020547,2]
[364527936,1749127845612,-620.88,0.00020547,2]
[364527938,1749127845623,-440.0,0.00020547,2]
[364527940,1749127845632,-500.0,0.00020547,2]
[364527942,1749127845642,-763.7,0.00020547,2]
[364527944,1749127845652,-440.0,0.00020547,2]
[364527946,1749127845661,-440.0,0.00020547,2]
[364527948,1749127845671,-4082.83,0.00020547,2]
[364527950,1749127845680,-2398.62,0.00020547,2]
[364527952,1749127845690,-440.0,0.00020547,2]
[364527954,1749127845699,-440.0,0.00020547,2]
[364527956,1749127845708,-552.52045598,0.00020547,2]
[364528022,1749127846324,-430.0,0.00019726,2]
[364528025,1749127846336,-177.84,0.00019726,2]
[364528027,1749127846346,-371.43981121,0.0002,2]
[364528041,1749127846465,-236.40018879,0.0002,2]
[364528043,1749127846475,-607.84,0.00020273,2]
[364528045,1749127846484,-156.96954402,0.00020547,2]
[364528047,1749127846493,-1006.17440918,0.00020547,2]
[364528049,1749127846505,-2448.65559082,0.00020547,2]
[364528051,1749127846515,-2923.93,0.00020547,2]
[364528053,1749127846525,-607.84,0.00020547,2]